bitfinex/quotes_SOLUSD_20250717
["timestamp","ask_amount","ask_price","bid_price","bid_amount"]
[1752759941879,14.12738041,173.51,173.5,1e-08]
[1752759942047,51.90738041,173.51,173.5,1e-08]
[1752759942247,38.5,173.51,173.5,1e-08]
[1752759942444,38.5,173.51,173.43,0.06]
[1752759942689,0.72,173.5,173.46,14.12738041]
[1752759942968,37.74,173.52,173.49,14.12738041]
[1752759943173,37.74,173.52,173.47,0.71]
[1752759943364,0.72,173.51,173.47,14.12738041]
[1752759943546,37.74,173.52,173.47,14.12738041]
[1752759943750,5.76402098,173.49,173.43,0.06]
[1752759943970,14.12738041,173.46,173.43,0.06]
[1752759944269,14.12738041,173.46,173.35,0.71]
[1752759944270,51.80738041,173.45,173.35,0.71]
[1752759944474,14.84738041,173.44,173.38,14.12738041]
[1752759944662,14.12738041,173.43,173.33,6.3606]
[1752759944859,14.12738041,173.42,173.36,14.12738041]
[1752759945050,0.72,173.43,173.33,0.71]
[1752759945373,0.72,173.47,173.42,14.12738041]
[1752759945675,0.72,173.47,173.31,21.81674237]
[1752759945676,5.76535024,173.45,173.36,0.71]
[1752759946084,5.76535024,173.45,173.41,14.12738041]
[1752759946301,5.76535024,173.45,173.36,0.71]
[1752759946302,6.48535024,173.45,173.4,14.12738041]
[1752759946478,5.76535024,173.45,173.36,0.71]
[1752759946805,37.74,173.46,173.4,0.71]
[1752759947005,37.74,173.46,173.45,14.12738041]
[1752759947301,37.74,173.46,173.36,20.18907792]
[1752759947302,38.46,173.46,173.37,0.71]
[1752759947502,38.46,173.46,173.41,14.12738041]
[1752759947804,19.89306306,173.44,173.34,0.71]
[1752759947995,5.76568265,173.44,173.34,0.71]
[1752759948388,37.7,173.45,173.35,16.78468397]
[1752759948597,37.7,173.45,173.32,26.0]
[1752759949077,37.7,173.45,173.41,14.12738041]
[1752759949276,0.72,173.44,173.32,26.0]
[1752759949716,0.72,173.47,173.43,14.12738041]
[1752759949895,0.72,173.52,173.46,14.12738041]
[1752759950112,5.76269232,173.53,173.51,14.12738041]
[1752759950289,5.76269232,173.53,173.42,14.12738041]
[1752759950482,6.48269232,173.53,173.48,14.12738041]
[1752759950683,0.72,173.52,173.41,0.3]
[1752759951000,14.12738041,173.51,173.45,14.12738041]
[1752759951332,5.76269232,173.53,173.5,14.12738041]
[1752759951611,6.48235425,173.55,173.46,0.3]
[1752759951906,20.88742483,173.55,173.44,5.76568265]
[1752759952082,20.88742483,173.55,173.43,5.76592994]
[1752759952278,0.72,173.54,173.47,14.12738041]
[1752759952600,0.72,173.54,173.42,32.06630632]
[1752759952601,0.72,173.54,173.52,14.12738041]
[1752759952899,43.48235425,173.55,173.53,14.12738041]
[1752759953100,0.72,173.54,173.44,0.3]
[1752759953312,0.72,173.54,173.5,14.12738041]
[1752759953603,14.84738041,173.53,173.47,14.12738041]
[1752759953801,5.76302443,173.52,173.49,14.12738041]
[1752759954107,5.76302443,173.52,173.5,14.12738041]
[1752759954400,5.76238713,173.54,173.51,14.12738041]
[1752759954605,5.76203959,173.55,173.53,14.12738041]
[1752759954909,0.72,173.59,173.54,14.12738041]
[1752759955101,0.72,173.63,173.58,14.12738041]
[1752759955315,9.46457142,173.65,173.62,14.12738041]
[1752759955316,5.75906075,173.64,173.62,14.12738041]
[1752759955473,5.75906075,173.64,173.55,14.42738041]
[1752759955793,20.15548516,173.65,173.55,0.3]
[1752759956107,0.72,173.64,173.59,14.12738041]
[1752759956403,0.72,173.64,173.56,14.12738041]
[1752759956604,0.72,173.63,173.6,14.12738041]
[1752759956780,38.32,173.62,173.59,14.12738041]
[1752759956976,0.72,173.61,173.51,0.3]
[1752759957221,0.72,173.61,173.57,14.12738041]
[1752759957405,0.72,173.6,173.51,0.3]
[1752759957583,0.72,173.6,173.5,31.76340135]
[1752759957784,5.7607005,173.59,173.52,5.76276337]
[1752759957991,5.7607005,173.59,173.57,14.12738041]
[1752759958188,5.7607005,173.59,173.56,14.12738041]
[1752759958508,37.6,173.62,173.58,14.12738041]
[1752759958700,37.6,173.62,173.56,0.3]
[1752759958701,37.6,173.62,173.61,14.12738041]
[1752759958909,37.6,173.62,173.56,0.3]
[1752759959093,43.35981001,173.62,173.53,0.3]
[1752759959289,43.35981001,173.62,173.61,14.12738041]
[1752759959595,37.6,173.62,173.61,14.12738041]
[1752759959772,43.3597051,173.62,173.61,14.12738041]
[1752759959980,44.0797051,173.62,173.58,14.12738041]
[1752759960179,0.72,173.61,173.51,0.3]
[1752759960399,14.12738041,173.6,173.54,14.12738041]
[1752759960605,14.12738041,173.57,173.51,14.12738041]
[1752759960810,14.12738041,173.52,173.46,14.12738041]
[1752759961105,38.22,173.51,173.44,14.12738041]
[1752759961290,14.12738041,173.48,173.37,6.6007]
[1752759961486,52.32738041,173.47,173.42,14.12738041]
[1752759961688,0.7,173.5,173.46,14.12738041]
[1752759961886,5.76402098,173.49,173.4,0.3]
[1752759962109,14.12738041,173.46,173.33,0.3]
[1752759962295,38.24,173.45,173.38,14.12738041]
[1752759962487,14.12738041,173.42,173.36,0.06]
[1752759962682,0.7,173.44,173.37,14.12738041]
[1752759962884,14.12738041,173.43,173.37,14.12738041]
[1752759963088,0.7,173.44,173.4,14.12738041]
[1752759963411,6.2536,173.48,173.43,14.12738041]
[1752759963582,38.18,173.47,173.36,0.36]
[1752759963906,20.17756254,173.46,173.4,14.12738041]
[1752759964078,5.76501787,173.46,173.45,14.12738041]
[1752759964274,43.24468598,173.47,173.45,14.12738041]
[1752759964492,37.48,173.47,173.46,14.12738041]
[1752759965008,72.48385846,173.47,173.37,14.12738041]
[1752759965191,14.12738041,173.43,173.37,14.12738041]
[1752759965392,38.2,173.42,173.37,14.12738041]
[1752759965591,0.7,173.41,173.36,0.06]
[1752759965782,20.18454439,173.4,173.36,0.06]
[1752759965988,14.12738041,173.37,173.36,0.06]
[1752759966184,51.60738041,173.37,173.36,0.06]
[1752759966389,52.30738041,173.37,173.36,0.06]
[1752759966584,52.28738041,173.37,173.36,1e-08]
[1752759966892,52.28738041,173.37,147.25,1.4097262]
[1752759966893,26.0,173.3,173.16,8.58131957]
[1752759967093,14.12738041,173.24,173.16,8.58131957]
[1752759967298,14.12738041,173.24,173.17,14.12738041]
[1752759967299,14.82738041,173.23,173.17,14.12738041]
[1752759967500,14.82738041,173.23,173.16,8.58131957]
[1752759967683,0.7,173.23,173.16,8.58131957]
[1752759967883,6.47267895,173.23,173.19,14.12738041]
[1752759968109,0.7,173.22,173.16,8.58131957]
[1752759968499,0.7,173.22,173.16,22.70869998]
[1752759968704,0.7,173.22,173.16,8.58131957]
[1752759968891,0.7,173.22,173.17,14.12738041]
[1752759969093,0.7,173.21,173.16,8.58131957]
[1752759969288,0.7,173.2,173.16,8.58131957]
[1752759969495,20.20435937,173.23,173.16,8.58131957]
[1752759969496,38.1,173.19,173.16,8.58131957]
[1752759969690,19.43821758,173.17,173.09,0.1380482]
[1752759969890,5.77500577,173.16,173.09,0.1380482]
[1752759970101,0.7,173.15,173.09,0.1380482]
[1752759971704,19.43821758,173.12,173.09,0.1380482]
[1752759971906,5.77700751,173.1,173.02,0.12]
[1752759972254,26.0,173.08,173.02,0.12]
[1752759972422,6.2342,173.07,172.9,5.78368999]
[1752759972609,26.0,173.03,172.9,5.78368999]
[1752759972795,0.7,173.02,172.94,19.43821758]
[1752759972999,37.68,173.01,172.88,0.42]
[1752759973309,26.0,172.98,172.84,3.00716853]
[1752759973511,0.7,172.97,172.84,3.00716853]
[1752759973713,0.7,172.97,172.81,5.78670215]
[1752759973714,37.9,172.96,172.81,5.78670215]
[1752759973914,6.48201792,172.95,172.8,14.4673796]
[1752759974234,26.7,172.94,172.79,0.42]
[1752759974522,0.7,172.93,172.76,6.2080435]
[1752759974821,19.43821758,172.89,172.76,6.2080435]
[1752759975121,38.66,172.9,172.76,6.2080435]
[1752759975425,38.62,172.94,172.77,0.42]
[1752759975624,19.43821758,172.92,172.85,19.43821758]
[1752759975797,0.7,172.94,172.82,0.42]
[1752759976015,5.78268663,172.93,172.82,26.42]
[1752759976218,5.78034682,173.0,172.86,26.0]
[1752759976446,5.78034682,173.0,172.95,19.43821758]
[1752759976736,5.78034682,173.0,172.9,0.42]
[1752759977050,0.7,172.99,172.82,20.25227414]
[1752759977542,26.0,172.97,172.82,5.78635585]
[1752759977851,0.7,172.96,172.78,7.44290136]
[1752759978051,6.4763,172.92,172.78,0.13829582]
[1752759978213,26.0,172.89,172.78,0.13829582]
[1752759978416,0.7,172.88,172.78,0.13829582]
[1752759978660,0.7,172.92,172.78,5.92572833]
[1752759978862,0.7,172.92,172.79,26.0]
[1752759979153,5.78201792,172.95,172.9,19.43821758]
[1752759979327,0.7,172.99,172.84,26.0]
[1752759979647,0.7,172.98,172.95,19.43821758]
[1752759979857,0.7,173.01,172.82,10.0]
[1752759980019,58.41821758,173.04,172.81,26.0]
[1752759980020,0.7,172.97,172.81,26.0]
[1752759980346,10.0,173.08,172.78,57.01083015]
[1752759980347,3.008,172.95,172.83,55.43821758]
[1752759980530,3.008,172.95,172.88,26.0]
[1752759980853,3.008,172.95,172.94,19.43821758]
[1752759982253,3.008,172.95,172.94,25.22056984]
[1752759982445,3.008,172.95,172.94,5.78235226]
[1752759982657,3.008,172.95,172.94,25.22056984]
[1752759983152,3.008,172.95,172.94,5.78235226]
[1752759983323,3.008,172.95,172.94,25.22056984]
[1752759983538,3.008,172.95,172.85,26.0]
[1752759983740,3.008,172.95,172.94,19.43821758]
[1752759984163,3.008,172.95,172.94,5.78235226]
[1752759984354,3.008,172.95,172.94,19.43821758]
[1752759984664,1.6286,173.09,172.94,19.43821758]
[1752759984665,0.7,173.06,172.94,45.43821758]
[1752759984856,0.7,173.06,173.04,19.43821758]
[1752759985041,0.7,173.09,173.05,19.43821758]
[1752759985362,6.5108,173.13,172.97,26.0]
[1752759985363,0.7,173.08,172.97,26.0]
[1752759985564,0.7,173.12,173.07,19.43821758]
[1752759985752,19.43821758,173.08,172.93,7.6179]
[1752759986064,25.21823029,173.01,172.84,20.24994213]
[1752759986261,6.48001271,173.01,172.95,19.43821758]
[1752759986464,19.43821758,172.98,172.84,5.78569775]
[1752759986667,19.43821758,172.93,172.73,10.0]
[1752759986841,19.43821758,172.89,172.76,5.78837693]
[1752759987041,0.7,172.88,172.76,20.25931927]
[1752759987373,0.7,172.91,172.87,19.43821758]
[1752759987561,0.7,172.91,172.76,20.25931927]
[1752759987738,0.7,172.95,172.9,19.43821758]
[1752759987941,10.7,172.99,172.94,19.43821758]
[1752759988252,45.43821758,172.96,172.9,19.43821758]
[1752759988451,19.43821758,172.93,172.82,45.00605878]
[1752759988648,0.7,172.92,172.9,19.43821758]
[1752759988848,0.7,172.96,172.91,19.43821758]
[1752759989059,0.7,172.96,172.94,19.43821758]
[1752759989370,0.7,172.96,172.84,16.78468397]
[1752759989555,6.4809157,172.99,172.95,19.43821758]
[1752759989764,6.4809157,172.99,172.97,19.43821758]
[1752759989958,6.4809157,172.99,172.96,19.43821758]
[1752759989959,0.7,172.98,172.96,19.43821758]
[1752759990171,5.78168362,172.96,172.85,16.78468397]
[1752759990473,28.89187593,173.06,172.84,39.14]
[1752759990474,5.77767506,173.08,172.95,19.43821758]
[1752759990660,5.77767506,173.08,172.93,39.12]
[1752759990867,0.7,173.07,172.93,16.78468397]
[1752759991176,0.7,173.07,172.86,6.5171]
[1752759991345,40.0,173.07,172.87,16.78468397]
[1752759991546,26.0,173.04,172.94,19.43821758]
[1752759991771,26.0,173.04,172.87,16.78468397]
[1752759991953,0.72,173.03,172.87,16.78468397]
[1752759992154,19.43821758,173.0,172.94,19.43821758]
[1752759992469,0.72,172.99,172.95,19.43821758]
[1752759992641,0.72,172.98,172.93,19.43821758]
[1752759992844,26.0,172.95,172.85,19.43821758]
[1752759993045,0.72,172.94,172.77,20.25814666]
[1752759993571,0.72,172.94,172.89,19.43821758]
[1752759993776,0.72,172.94,172.82,16.78468397]
[1752759994074,31.78302105,172.92,172.77,5.7880419]
[1752759994387,19.43821758,172.87,172.81,19.43821758]
[1752759994558,20.15821758,172.88,172.75,0.06]
[1752759994868,20.15821758,172.88,172.76,16.78468397]
[1752759994869,0.72,172.88,172.76,16.78468397]
[1752759995075,0.72,172.89,172.75,20.32036]
[1752759995276,6.50302105,172.92,172.87,19.43821758]
[1752759995448,6.50302105,172.92,172.88,19.43821758]
[1752759995449,0.72,172.91,172.88,19.43821758]
[1752759995647,0.72,172.91,172.8,17.16]
[1752759995867,20.15821758,172.91,172.85,19.43821758]
[1752759996183,5.7846937,172.87,172.82,19.43821758]
[1752759996347,6.5046937,172.87,172.82,19.43821758]
[1752759996544,5.7846937,172.87,172.85,19.43821758]
[1752759996748,5.78402452,172.89,172.75,26.06]
[1752759996975,5.78402452,172.89,172.86,14.31717022]
[1752759997344,5.78364525,172.91,172.8,16.78468397]
[1752759997550,20.242034,172.91,172.75,0.06]
[1752759997855,14.31717022,172.9,172.85,14.31717022]
[1752759998269,0.72,172.9,172.86,14.31717022]
[1752759998479,5.78134936,172.97,172.89,14.31717022]
[1752759998650,6.50105295,172.98,172.96,14.31717022]
[1752759998857,6.50105295,172.98,172.95,14.31717022]
[1752759999148,5.78034682,173.0,172.97,14.31717022]
[1752759999358,6.50034682,173.0,172.97,14.31717022]
[1752759999662,0.72,173.06,172.92,39.82]
[1752759999976,5.87670446,173.11,173.05,14.31717022]
[1752760000157,0.1,173.11,173.03,14.31717022]
[1752760000362,5.87678948,173.11,173.03,14.31717022]
[1752760000564,5.87678948,173.11,173.1,14.31717022]
[1752760000771,5.87678948,173.11,173.02,5.77965862]
[1752760000981,5.87678948,173.11,173.0,26.0]
[1752760000982,6.59678948,173.11,173.07,19.45961191]
[1752760001164,0.72,173.1,173.04,19.45961191]
[1752760001361,0.72,173.1,173.08,19.45961191]
[1752760001653,0.1,173.11,173.09,19.45961191]
[1752760001875,0.1,173.11,173.1,19.45961191]
[1752760002580,0.1,173.11,173.05,5.77867668]
[1752760002876,0.72,173.1,173.0,16.78468397]
[1752760003098,0.72,173.1,173.04,19.45961191]
[1752760003258,0.72,173.1,173.07,19.45961191]
[1752760003454,0.1,173.11,173.09,19.45961191]
[1752760003866,0.1,173.11,173.1,19.45961191]
[1752760004458,0.1,173.11,173.1,25.23661942]
[1752760004872,0.1,173.11,173.1,5.77700751]
[1752760005181,0.1,173.11,173.1,42.02130339]
[1752760005482,0.03,173.14,173.1,42.02130339]
[1752760005483,0.03,173.14,173.1,56.46382216]
[1752760005672,0.03,173.14,173.13,36.24429588]
[1752760005871,14.42674764,173.29,173.11,26.0]
[1752760005872,5.77100646,173.28,173.14,42.78468397]
[1752760006055,5.77100646,173.28,173.15,16.78468397]
[1752760006258,0.72,173.29,173.27,19.45961191]
[1752760006470,5.76967459,173.32,173.28,19.45961191]
[1752760006660,0.72,173.31,173.18,16.78468397]
[1752760006872,0.72,173.31,173.19,5.77400542]
[1752760007076,6.48932065,173.34,173.3,19.45961191]
[1752760007282,6.48932065,173.34,173.21,16.78468397]
[1752760007457,0.72,173.33,173.19,5.77400542]
[1752760007658,0.72,173.33,173.16,54.97741372]
[1752760007659,19.45961191,173.29,173.16,40.54]
[1752760007866,19.45961191,173.27,173.13,16.78468397]
[1752760008158,0.72,173.28,173.25,19.45961191]
[1752760008361,0.72,173.27,173.25,19.45961191]
[1752760008669,0.72,173.26,173.16,5.77497659]
[1752760008853,0.72,173.26,173.22,19.45961191]
[1752760009058,0.72,173.25,173.21,19.45961191]
[1752760009375,0.72,173.24,173.21,19.45961191]
[1752760009560,0.72,173.23,173.13,16.78468397]
[1752760009890,0.72,173.26,173.21,19.45961191]
[1752760010075,26.0,173.27,173.24,19.45961191]
[1752760010259,0.72,173.26,173.24,19.45961191]
[1752760010460,0.72,173.26,173.23,19.45961191]
[1752760010660,0.72,173.25,173.15,17.16]
[1752760010894,5.77133952,173.27,173.24,19.45961191]
[1752760011071,0.03,173.28,173.26,19.45961191]
[1752760011262,5.80100729,173.28,173.15,16.78468397]
[1752760011465,0.72,173.27,173.13,5.77597015]
[1752760011663,0.72,173.27,173.14,16.78468397]
[1752760011971,0.72,173.27,173.14,42.78468397]
[1752760012172,5.80100729,173.28,173.26,19.45961191]
[1752760012387,0.03,173.28,173.27,19.45961191]
[1752760012565,0.03,173.28,173.21,5.77323844]
[1752760012764,0.03,173.28,173.27,19.45961191]
[1752760013174,18.1471832,173.45,173.28,16.78468397]
[1752760013364,0.72,173.42,173.38,19.45961191]
[1752760013565,0.72,173.41,173.38,19.45961191]
[1752760013882,0.72,173.4,173.38,19.45961191]
[1752760014063,0.72,173.39,173.36,19.45961191]
[1752760014270,5.76767793,173.38,173.36,19.45961191]
[1752760014481,0.72,173.37,173.34,19.45961191]
[1752760014698,0.72,173.37,173.26,5.77142992]
[1752760014699,0.72,173.37,173.27,16.78468397]
[1752760015197,0.72,173.41,173.36,19.45961191]
[1752760015367,0.72,173.4,173.37,19.45961191]
[1752760015563,5.76616982,173.43,173.39,19.45961191]
[1752760015767,0.72,173.39,173.37,19.45961191]
[1752760015963,0.72,173.38,173.26,5.77142992]
[1752760016164,0.72,173.38,173.35,19.45961191]
[1752760016368,5.76668012,173.41,173.37,19.45961191]
[1752760016587,46.4653836,173.45,173.4,19.45961191]
[1752760016790,19.45961191,173.49,173.44,19.45961191]
[1752760016791,5.76470523,173.47,173.44,19.45961191]
[1752760017106,0.72,173.49,173.36,16.78468397]
[1752760017107,6.48431515,173.49,173.46,19.45961191]
[1752760017351,0.03,173.5,173.48,19.45961191]
[1752760017462,0.03,173.5,173.37,16.78468397]
[1752760017463,0.03,173.5,173.4,26.0]
[1752760017667,0.03,173.5,173.41,16.78468397]
[1752760017867,0.03,173.5,173.37,40.74]
[1752760017868,0.72,173.49,173.32,40.7]
[1752760018091,0.72,173.49,173.33,16.78468397]
[1752760018394,19.45961191,173.45,173.39,19.45961191]
[1752760018583,5.76435323,173.48,173.33,16.78468397]
[1752760018584,26.0,173.43,173.41,19.45961191]
[1752760018779,26.0,173.43,173.33,16.78468397]
[1752760018997,26.72,173.43,173.39,19.45961191]
[1752760019185,26.72,173.43,173.4,19.45961191]
[1752760019379,26.0,173.45,173.42,19.45961191]
[1752760019698,26.0,173.45,173.33,16.78468397]
[1752760020004,0.72,173.46,173.33,16.78468397]
[1752760020297,5.76668012,173.41,173.25,171.99521191]
[1752760020514,5.76568265,173.44,173.27,16.78468397]
[1752760020806,26.0,173.41,173.25,146.4]
[1752760020971,45.45961191,173.37,173.31,19.45961191]
[1752760021202,19.45961191,173.34,173.19,5.77400542]
[1752760021405,0.71,173.33,173.28,19.45961191]
[1752760021639,0.71,173.33,173.19,20.20901898]
[1752760021640,41.53,173.33,173.19,20.20901898]
[1752760021814,20.16961191,173.32,173.18,70.01392436]
[1752760022126,19.45961191,173.3,173.24,19.45961191]
[1752760022339,5.77067343,173.29,173.26,19.45961191]
[1752760022533,5.76934171,173.33,173.28,19.45961191]
[1752760022722,26.0,173.29,173.24,19.45961191]
[1752760022905,40.74,173.31,173.28,19.45961191]
[1752760023227,5.76934171,173.33,173.29,19.45961191]
[1752760023403,6.47934171,173.33,173.3,19.45961191]
[1752760023604,0.71,173.32,173.19,26.0]
[1752760023834,0.71,173.32,173.25,19.45961191]
[1752760024009,20.16961191,173.32,173.16,16.78468397]
[1752760024206,26.0,173.3,173.09,5.77734126]
[1752760024423,20.90735702,173.29,173.21,19.45961191]
[1752760024623,40.8,173.28,173.25,19.45961191]
[1752760024859,6.48067343,173.29,173.16,16.78468397]
[1752760025423,6.48067343,173.29,173.26,19.45961191]
[1752760025628,0.71,173.35,173.28,19.45961191]
[1752760025818,20.18570851,173.39,173.34,19.45961191]
[1752760025819,40.78,173.38,173.34,19.45961191]
[1752760026004,0.71,173.37,173.25,42.78468397]
[1752760026200,20.16961191,173.37,173.31,19.45961191]
[1752760026403,5.76834333,173.36,173.32,19.45961191]
[1752760026637,0.71,173.35,173.33,19.45961191]
[1752760026810,40.78,173.38,173.33,19.45961191]
[1752760027006,6.47737,173.39,173.29,16.78468397]
[1752760027318,66.35,173.42,173.38,19.45961191]
[1752760027514,66.35,173.42,173.39,19.45961191]
[1752760027716,41.43,173.42,173.39,19.45961191]
[1752760027905,40.68,173.43,173.41,19.45961191]
[1752760028225,40.68,173.43,173.32,16.78468397]
[1752760028425,66.61579599,173.43,173.32,5.76963547]
[1752760028634,0.71,173.42,173.33,19.45961191]
[1752760028844,19.45961191,173.35,173.25,5.77200577]
[1752760029146,19.45961191,173.3,173.17,5.77467228]
[1752760029441,41.31,173.3,173.26,19.45961191]
[1752760029641,19.45961191,173.27,173.21,19.45961191]
[1752760029820,0.71,173.29,173.18,19.45961191]
[1752760030019,0.71,173.29,173.16,17.302535]
[1752760030227,19.45961191,173.23,173.18,19.45961191]
[1752760030429,46.35267216,173.23,173.2,19.45961191]
[1752760030739,5.77267216,173.23,173.21,19.45961191]
[1752760030914,40.54,173.28,173.22,19.45961191]
[1752760031243,6.7595,173.32,173.2,16.78468397]
[1752760031422,40.54,173.31,173.27,19.45961191]
[1752760031739,0.71,173.3,173.25,19.45961191]
[1752760031942,0.71,173.3,173.27,19.45961191]
[1752760032115,46.3100075,173.31,173.19,26.0]
[1752760032116,46.3100075,173.31,173.29,19.45961191]
[1752760032537,40.54,173.31,173.29,19.45961191]
[1752760032737,40.54,173.31,173.22,16.78468397]
[1752760032948,0.03,173.36,173.3,19.45961191]
[1752760033116,0.03,173.36,173.35,19.45961191]
[1752760033751,0.03,173.36,173.35,36.24429588]
[1752760033938,0.03,173.36,173.35,19.45961191]
[1752760034113,0.03,173.36,173.35,36.24429588]
[1752760034443,0.03,173.36,173.35,42.01297196]
[1752760035229,0.03,173.36,173.3,5.77034045]
[1752760035419,0.03,173.36,173.35,19.45961191]
[1752760035940,0.03,173.36,173.29,26.0]
[1752760036245,0.03,173.36,173.35,19.45961191]
[1752760036942,0.03,173.36,173.35,25.22828799]
[1752760037365,0.03,173.36,173.35,19.45961191]
[1752760037933,0.74,173.36,173.33,19.45961191]
[1752760038237,20.19961191,173.36,173.3,19.45961191]
[1752760038548,20.19961191,173.36,173.29,19.45961191]
[1752760038549,6.47867608,173.35,173.29,19.45961191]
[1752760038729,25.93828799,173.35,173.29,19.45961191]
[1752760038925,20.9003663,173.35,173.31,19.45961191]
[1752760039124,46.71867608,173.35,173.31,19.45961191]
[1752760039428,0.03,173.36,173.27,16.78468397]
[1752760039747,0.03,173.36,173.35,19.45961191]
[1752760039943,0.03,173.36,173.34,19.45961191]
[1752760040144,0.03,173.36,173.35,19.45961191]
[1752760040533,0.74,173.36,173.34,19.45961191]
[1752760040728,0.74,173.36,173.35,19.45961191]
[1752760040729,0.03,173.36,173.35,19.45961191]
[1752760041423,0.03,173.36,173.3,16.78468397]
[1752760041623,0.03,173.36,173.34,19.45961191]
[1752760041824,0.03,173.36,173.28,31.77094636]
[1752760042055,0.03,173.36,173.35,19.45961191]
[1752760042363,0.03,173.36,173.35,25.22828799]
[1752760042519,0.03,173.36,173.35,42.01297196]
[1752760044137,0.03,173.4,173.39,42.78468397]
[1752760044340,0.03,173.5,173.39,82.43000439]
[1752760044554,0.03,173.5,173.49,19.45961191]
[1752760045967,0.03,173.5,173.49,16.78468397]
[1752760046137,0.03,173.5,173.49,19.45961191]
[1752760046332,0.03,173.5,173.49,42.00831686]
[1752760047733,0.03,173.5,173.49,19.45961191]
[1752760048262,0.03,173.5,173.42,36.96690054]
[1752760048461,0.03,173.5,173.49,19.45961191]
[1752760048657,0.03,173.5,173.49,36.24429588]
[1752760048831,0.03,173.5,173.49,19.45961191]
[1752760049248,0.74,173.5,173.42,5.76634759]
[1752760049451,0.74,173.5,173.48,19.45961191]
[1752760049667,0.74,173.5,173.49,19.45961191]
[1752760049829,0.74,173.5,173.36,14.42061116]
[1752760050035,19.45961191,173.49,173.37,22.55269458]
[1752760050262,0.71,173.48,173.36,5.76829271]
[1752760050436,5.76468553,173.47,173.36,5.76829271]
[1752760050637,5.76468553,173.47,173.43,19.45961191]
[1752760050855,0.71,173.46,173.37,16.78468397]
[1752760051181,0.71,173.46,173.43,19.45961191]
[1752760051344,0.71,173.46,173.37,16.78468397]
[1752760051749,5.76468553,173.47,173.45,19.45961191]
[1752760051933,0.03,173.5,173.46,19.45961191]
[1752760052137,0.03,173.5,173.49,19.45961191]
[1752760052571,0.03,173.5,173.49,25.22363289]
[1752760052739,0.03,173.5,173.49,42.00831686]
[1752760052943,0.03,173.5,173.49,25.22363289]
[1752760053271,0.1,173.54,173.53,16.78468397]
[1752760053442,0.69,173.65,173.64,19.45961191]
[1752760053762,0.79,173.68,173.64,19.45961191]
[1752760053967,6.54779339,173.68,173.67,19.45961191]
[1752760054144,0.1,173.68,173.67,19.45961191]
[1752760054334,0.79,173.68,173.67,19.45961191]
[1752760054537,0.1,173.68,173.67,19.45961191]
[1752760055740,0.1,173.68,173.62,16.78468397]
[1752760056055,0.1,173.68,173.67,19.45961191]
[1752760056850,0.79,173.68,173.67,19.45961191]
[1752760057288,0.1,173.68,173.67,19.45961191]
[1752760058555,0.1,173.68,173.64,31.75904169]
[1752760058754,0.1,173.68,173.67,19.45961191]
[1752760059575,5.85771533,173.68,173.61,5.76003686]
[1752760059743,6.54771533,173.68,173.65,19.45961191]
[1752760060052,0.69,173.67,173.65,19.45961191]
[1752760060254,0.1,173.68,173.66,19.45961191]
[1752760060449,0.1,173.68,173.67,19.45961191]
[1752760060945,0.1,173.68,173.67,25.21765878]
[1752760061554,0.1,173.68,173.67,5.75804687]
[1752760061774,0.1,173.68,173.67,19.45961191]
[1752760061974,0.1,173.68,173.62,16.78468397]
[1752760062154,0.1,173.68,173.67,19.45961191]
[1752760064053,0.1,173.68,173.67,36.24429588]
[1752760064764,0.1,173.68,173.67,25.21765878]
[1752760064968,0.1,173.68,173.67,14.17393699]
[1752760065173,0.1,173.68,173.67,30.95862096]
[1752760065475,0.1,173.68,173.67,36.71666783]
[1752760065648,0.1,173.68,173.67,68.19060482]
[1752760065848,0.1,173.68,173.67,14.17393699]
[1752760066359,0.1,173.68,173.67,45.13255795]
[1752760066581,0.1,173.68,173.67,30.95862096]
[1752760066749,0.1,173.68,173.67,50.89060482]
[1752760069156,0.1,173.68,173.67,14.17393699]